[Event "Early-Titled-Tuesday-Blitz-October-03-2023"]
[Site "Chess.com"]
[Date "2023.10.03"]
[Round "9"]
[White "RianKapriaga"]
[Black "DarZay"]
[Result "0-1"]
[WhiteElo "2319"]
[BlackElo "2224"]
[TimeControl "180+1"]
[EndTime "9:46:56 PDT"]
[Termination "DarZay won on time"]

1. d4 {[%clk 0:02:56.4]} 1... d5 {[%clk 0:02:57.6]} 2. Nf3 {[%clk 0:02:54.4]}
2... Nf6 {[%clk 0:02:56.3]} 3. Bf4 {[%clk 0:02:52.8]} 3... Bf5 {[%clk 0:02:56]}
4. e3 {[%clk 0:02:52.7]} 4... e6 {[%clk 0:02:56.1]} 5. Ne5 {[%clk 0:02:51.9]}
5... Be7 {[%clk 0:02:53.6]} 6. Be2 {[%clk 0:02:51.7]} 6... O-O {[%clk
0:02:52.7]} 7. g4 {[%clk 0:02:51]} 7... Bg6 {[%clk 0:02:51.1]} 8. h4 {[%clk
0:02:51.4]} 8... h6 {[%clk 0:02:45.9]} 9. Nxg6 {[%clk 0:02:49.9]} 9... fxg6
{[%clk 0:02:43.6]} 10. g5 {[%clk 0:02:50.1]} 10... Ne4 {[%clk 0:02:33.5]} 11.
Nd2 {[%clk 0:02:40]} 11... hxg5 {[%clk 0:02:31.4]} 12. hxg5 {[%clk 0:02:36.6]}
12... Bxg5 {[%clk 0:02:27.4]} 13. Nxe4 {[%clk 0:02:34]} 13... Bxf4 {[%clk
0:02:20.4]} 14. exf4 {[%clk 0:02:28.9]} 14... dxe4 {[%clk 0:02:20]} 15. Qd2
{[%clk 0:02:28.3]} 15... Qf6 {[%clk 0:02:16.8]} 16. Bc4 {[%clk 0:02:20]} 16...
Nd7 {[%clk 0:02:09]} 17. O-O-O {[%clk 0:02:18.4]} 17... Nb6 {[%clk 0:02:08.4]}
18. Bb3 {[%clk 0:02:16.6]} 18... Nd5 {[%clk 0:02:07.5]} 19. Kb1 {[%clk
0:02:04.6]} 19... Qxf4 {[%clk 0:02:06.4]} 20. Bxd5 {[%clk 0:01:55.7]} 20... exd5
{[%clk 0:02:03]} 21. Qa5 {[%clk 0:01:54.5]} 21... c6 {[%clk 0:02:00.7]} 22. Rdg1
{[%clk 0:01:47.5]} 22... Qxf2 {[%clk 0:01:57.6]} 23. a3 {[%clk 0:01:34.2]} 23...
Rf6 {[%clk 0:01:53.6]} 24. Qc7 {[%clk 0:01:03.4]} 24... e3 {[%clk 0:01:50]} 25.
Qe7 {[%clk 0:00:44.3]} 25... Qf5 {[%clk 0:01:37.3]} 26. Qxe3 {[%clk 0:00:40.5]}
26... Re6 {[%clk 0:01:36.9]} 27. Qd2 {[%clk 0:00:35.1]} 27... Rae8 {[%clk
0:01:34.7]} 28. Rf1 {[%clk 0:00:34.1]} 28... Re2 {[%clk 0:01:30]} 29. Qc3 {[%clk
0:00:21.5]} 29... Rf2 {[%clk 0:01:29.9]} 30. Rxf2 {[%clk 0:00:18.6]} 30... Qxf2
{[%clk 0:01:29.7]} 31. Qh3 {[%clk 0:00:18.4]} 31... Re1+ {[%clk 0:01:28.2]} 32.
Rxe1 {[%clk 0:00:15.2]} 32... Qxe1+ {[%clk 0:01:28.4]} 33. Ka2 {[%clk
0:00:15.7]} 33... Kf7 {[%clk 0:01:06.9]} 34. Qc8 {[%clk 0:00:10.7]} 34... Qe7
{[%clk 0:01:06.1]} 35. Qb8 {[%clk 0:00:09.6]} 35... g5 {[%clk 0:01:03.4]} 36. c3
{[%clk 0:00:07.8]} 36... a6 {[%clk 0:01:01.1]} 37. Kb3 {[%clk 0:00:05.8]} 37...
Kg6 {[%clk 0:00:57.2]} 38. Ka4 {[%clk 0:00:05.3]} 38... g4 {[%clk 0:00:53.4]}
39. Ka5 {[%clk 0:00:05]} 39... Kh5 {[%clk 0:00:42.2]} 40. b4 {[%clk 0:00:04.3]}
40... Kh4 {[%clk 0:00:39.3]} 41. Qh2+ {[%clk 0:00:02.9]} 41... Kg5 {[%clk
0:00:39.6]} 42. Qd2+ {[%clk 0:00:01.6]} 42... Kf5 {[%clk 0:00:38.6]} 43. Qf2+
{[%clk 0:00:01.7]} 43... Kg6 {[%clk 0:00:34.7]} 44. Kb6 {[%clk 0:00:02.2]} 44...
Qd7 {[%clk 0:00:29.6]} 45. a4 {[%clk 0:00:01.9]} 45... Kh6 {[%clk 0:00:18.8]}
46. a5 {[%clk 0:00:02.2]} 46... g5 {[%clk 0:00:17.3]} 47. Qh2+ {[%clk
0:00:01.9]} 47... Kg6 {[%clk 0:00:17.3]} 48. Qc2+ {[%clk 0:00:02.2]} 48... Qf5
{[%clk 0:00:15.6]} 0-1

[Event "Early-Titled-Tuesday-Blitz-October-03-2023"]
[Site "Chess.com"]
[Date "2023.10.03"]
[Round "9"]
[White "NovozhilovSemen"]
[Black "blitzking1729"]
[Result "0-1"]
[WhiteElo "2592"]
[BlackElo "2728"]
[TimeControl "180+1"]
[EndTime "9:46:57 PDT"]
[Termination "blitzking1729 won by resignation"]

1. d4 {[%clk 0:03:00.9]} 1... f5 {[%clk 0:02:58.5]} 2. c4 {[%clk 0:03:00.8]}
2... Nf6 {[%clk 0:02:57.1]} 3. Nc3 {[%clk 0:03:01.1]} 3... e6 {[%clk 0:02:57.4]}
4. Qc2 {[%clk 0:03:01.2]} 4... Bb4 {[%clk 0:02:55.9]} 5. e3 {[%clk 0:03:01.1]}
5... O-O {[%clk 0:02:55.6]} 6. Bd3 {[%clk 0:03:01.1]} 6... b6 {[%clk 0:02:55.5]}
7. Ne2 {[%clk 0:03:01.3]} 7... Bb7 {[%clk 0:02:55.9]} 8. f3 {[%clk 0:03:01.6]}
8... c5 {[%clk 0:02:47.5]} 9. d5 {[%clk 0:02:53.5]} 9... exd5 {[%clk 0:02:44.9]}
10. cxd5 {[%clk 0:02:52.9]} 10... Nxd5 {[%clk 0:02:42.9]} 11. Bxf5 {[%clk
0:02:45.8]} 11... Kh8 {[%clk 0:02:42]} 12. O-O {[%clk 0:02:42.4]} 12... Nf6
{[%clk 0:02:30.6]} 13. e4 {[%clk 0:02:23.5]} 13... d5 {[%clk 0:02:15.8]} 14. e5
{[%clk 0:02:23]} 14... Nfd7 {[%clk 0:02:15.8]} 15. Bf4 {[%clk 0:02:13.1]} 15...
Bxc3 {[%clk 0:01:56.2]} 16. bxc3 {[%clk 0:02:11.7]} 16... Ba6 {[%clk 0:01:56.1]}
17. Bd3 {[%clk 0:01:40.1]} 17... g6 {[%clk 0:01:51.9]} 18. Rad1 {[%clk
0:01:26.1]} 18... Bb7 {[%clk 0:01:21.7]} 19. Rfe1 {[%clk 0:00:53.7]} 19... Qe8
{[%clk 0:01:02.6]} 20. Bb5 {[%clk 0:00:45.8]} 20... a6 {[%clk 0:00:59.9]} 21.
Bxd7 {[%clk 0:00:45.3]} 21... Nxd7 {[%clk 0:01:00.1]} 22. Bg3 {[%clk 0:00:37.6]}
22... Rf5 {[%clk 0:00:50.6]} 23. e6 {[%clk 0:00:35.2]} 23... Nf8 {[%clk
0:00:49.3]} 24. e7 {[%clk 0:00:29.1]} 24... Nd7 {[%clk 0:00:41]} 25. Bc7 {[%clk
0:00:28.2]} 25... Rf7 {[%clk 0:00:34]} 26. Bd8 {[%clk 0:00:27.9]} 26... Rxd8
{[%clk 0:00:27.9]} 27. exd8=Q {[%clk 0:00:28.8]} 27... Qxd8 {[%clk 0:00:28.8]}
28. Ng3 {[%clk 0:00:28.7]} 28... Kg7 {[%clk 0:00:26.1]} 29. Qe2 {[%clk
0:00:27.5]} 29... Nf6 {[%clk 0:00:23]} 30. Qe6 {[%clk 0:00:21.8]} 30... Bc8
{[%clk 0:00:22.7]} 31. Qe5 {[%clk 0:00:21.4]} 31... Kg8 {[%clk 0:00:16.6]} 32.
h4 {[%clk 0:00:20.9]} 32... h5 {[%clk 0:00:15.2]} 33. Qg5 {[%clk 0:00:19.9]}
33... Kh7 {[%clk 0:00:09.3]} 34. Rd2 {[%clk 0:00:19.3]} 34... Qd6 {[%clk
0:00:08.6]} 35. Rde2 {[%clk 0:00:18.7]} 35... d4 {[%clk 0:00:07.4]} 36. cxd4
{[%clk 0:00:15.9]} 36... cxd4 {[%clk 0:00:06.8]} 37. Ne4 {[%clk 0:00:16.3]}
37... Nxe4 {[%clk 0:00:05.9]} 38. Rxe4 {[%clk 0:00:17.2]} 38... d3 {[%clk
0:00:05.2]} 39. Qe3 {[%clk 0:00:16.8]} 39... Bf5 {[%clk 0:00:04.3]} 40. Rd4
{[%clk 0:00:16.3]} 40... Qc5 {[%clk 0:00:04.6]} 41. g4 {[%clk 0:00:11.9]} 41...
hxg4 {[%clk 0:00:04.5]} 42. fxg4 {[%clk 0:00:12.8]} 42... Bxg4 {[%clk
0:00:04.9]} 43. Rxg4 {[%clk 0:00:09.1]} 43... d2 {[%clk 0:00:05.2]} 44. Kh2
{[%clk 0:00:03.5]} 44... Qxe3 {[%clk 0:00:04.4]} 0-1

[Event "Early-Titled-Tuesday-Blitz-October-03-2023"]
[Site "Chess.com"]
[Date "2023.10.03"]
[Round "9"]
[White "ferrufino64"]
[Black "KorolDimitriy75"]
[Result "1-0"]
[WhiteElo "2229"]
[BlackElo "2370"]
[TimeControl "180+1"]
[EndTime "9:47:04 PDT"]
[Termination "ferrufino64 won by resignation"]

1. e4 {[%clk 0:03:00.9]} 1... c5 {[%clk 0:02:59.3]} 2. Nf3 {[%clk 0:03:01]} 2...
d6 {[%clk 0:02:59.2]} 3. d4 {[%clk 0:03:00.8]} 3... cxd4 {[%clk 0:03:00.1]} 4.
Nxd4 {[%clk 0:03:01.7]} 4... Nf6 {[%clk 0:03:00.7]} 5. Nc3 {[%clk 0:03:01.9]}
5... g6 {[%clk 0:03:01.3]} 6. Be3 {[%clk 0:03:01.8]} 6... Bg7 {[%clk 0:03:01.5]}
7. f3 {[%clk 0:03:02.6]} 7... O-O {[%clk 0:03:01.6]} 8. Qd2 {[%clk 0:03:03.3]}
8... Nc6 {[%clk 0:03:01.8]} 9. g4 {[%clk 0:03:04]} 9... Be6 {[%clk 0:03:01.1]}
10. h4 {[%clk 0:03:04]} 10... d5 {[%clk 0:02:59.1]} 11. g5 {[%clk 0:03:01.6]}
11... Nh5 {[%clk 0:02:57.6]} 12. exd5 {[%clk 0:02:55.2]} 12... Bxd5 {[%clk
0:02:52.1]} 13. Nxd5 {[%clk 0:02:55.2]} 13... Qxd5 {[%clk 0:02:51.5]} 14. Nxc6
{[%clk 0:02:55.6]} 14... Qxc6 {[%clk 0:02:35.3]} 15. O-O-O {[%clk 0:02:55.4]}
15... Rfc8 {[%clk 0:02:16.7]} 16. Bh3 {[%clk 0:02:35.1]} 16... e6 {[%clk
0:02:04.1]} 17. Bg4 {[%clk 0:02:31.4]} 17... Qb5 {[%clk 0:01:48.9]} 18. Bd4
{[%clk 0:02:11.1]} 18... Qc4 {[%clk 0:00:44.7]} 19. Bxg7 {[%clk 0:02:07.4]}
19... Kxg7 {[%clk 0:00:22.9]} 20. Kb1 {[%clk 0:02:06.5]} 20... Ng3 {[%clk
0:00:16.1]} 21. Rhe1 {[%clk 0:02:05.6]} 21... Rc7 {[%clk 0:00:11.8]} 22. c3
{[%clk 0:02:00]} 22... Rac8 {[%clk 0:00:10.2]} 23. Qe3 {[%clk 0:02:00.3]} 23...
b6 {[%clk 0:00:08.8]} 24. Qe5+ {[%clk 0:02:00.4]} 24... Kg8 {[%clk 0:00:06.5]}
25. Qxg3 {[%clk 0:02:00.9]} 25... a5 {[%clk 0:00:06.2]} 26. Rd4 {[%clk
0:01:56.7]} 26... Qb5 {[%clk 0:00:06]} 27. Red1 {[%clk 0:01:56.3]} 27... Rxc3
{[%clk 0:00:05.6]} 28. Rd8+ {[%clk 0:01:56.2]} 28... Rxd8 {[%clk 0:00:02.2]} 29.
Rxd8+ {[%clk 0:01:55.8]} 29... Kg7 {[%clk 0:00:03.1]} 30. Qe1 {[%clk 0:01:51.8]}
30... Rc5 {[%clk 0:00:01.5]} 31. Rd2 {[%clk 0:01:40]} 31... a4 {[%clk
0:00:01.9]} 32. Qe2 {[%clk 0:01:25.8]} 32... Qb4 {[%clk 0:00:01.5]} 33. a3
{[%clk 0:01:25.3]} 33... Qb3 {[%clk 0:00:01.7]} 34. Qd3 {[%clk 0:01:24.4]} 34...
Rd5 {[%clk 0:00:01.5]} 35. Qxb3 {[%clk 0:01:21.8]} 35... axb3 {[%clk 0:00:02.4]}
36. Rxd5 {[%clk 0:01:21.5]} 36... exd5 {[%clk 0:00:03.3]} 37. Kc1 {[%clk
0:01:21.5]} 37... f5 {[%clk 0:00:03.7]} 38. gxf6+ {[%clk 0:01:21.1]} 38... Kxf6
{[%clk 0:00:04.3]} 39. f4 {[%clk 0:00:41.5]} 39... h5 {[%clk 0:00:04]} 40. Bd1
{[%clk 0:00:40.7]} 40... Kf5 {[%clk 0:00:03.8]} 41. Bxb3 {[%clk 0:00:40.6]}
41... Kxf4 {[%clk 0:00:04.5]} 42. Bxd5 {[%clk 0:00:33.1]} 42... Kg4 {[%clk
0:00:04.5]} 43. Bf7 {[%clk 0:00:33.2]} 43... Kxh4 {[%clk 0:00:04.6]} 44. Bxg6
{[%clk 0:00:33.5]} 44... Kg5 {[%clk 0:00:05.5]} 45. Be8 {[%clk 0:00:31.6]} 45...
h4 {[%clk 0:00:05.3]} 46. Kc2 {[%clk 0:00:31.9]} 46... Kf4 {[%clk 0:00:05.4]}
47. Kc3 {[%clk 0:00:32.3]} 47... h3 {[%clk 0:00:05.8]} 48. Kb4 {[%clk
0:00:32.8]} 48... h2 {[%clk 0:00:06.7]} 49. Bc6 {[%clk 0:00:32.8]} 49... Ke5
{[%clk 0:00:06.6]} 50. Kb5 {[%clk 0:00:33.1]} 50... Kd4 {[%clk 0:00:05.7]} 51.
Kxb6 {[%clk 0:00:33.4]} 51... Kc4 {[%clk 0:00:06.3]} 52. a4 {[%clk 0:00:33.2]}
52... Kb3 {[%clk 0:00:06.5]} 53. a5 {[%clk 0:00:33.6]} 53... Kxb2 {[%clk
0:00:07.2]} 54. Bh1 {[%clk 0:00:33.7]} 54... Kc3 {[%clk 0:00:08.1]} 55. a6
{[%clk 0:00:34.2]} 55... Kd4 {[%clk 0:00:09]} 56. a7 {[%clk 0:00:35.1]} 56...
Ke3 {[%clk 0:00:09.6]} 57. a8=Q {[%clk 0:00:34.9]} 57... Kf2 {[%clk 0:00:10.5]}
58. Qg2+ {[%clk 0:00:35.2]} 58... Ke3 {[%clk 0:00:10.5]} 59. Qxh2 {[%clk
0:00:35.2]} 59... Kd3 {[%clk 0:00:10.9]} 60. Qh4 {[%clk 0:00:35.6]} 60... Ke3
{[%clk 0:00:11]} 61. Bb7 {[%clk 0:00:36.5]} 61... Ke2 {[%clk 0:00:11]} 62. Kc5
{[%clk 0:00:37.4]} 62... Kd3 {[%clk 0:00:11.2]} 63. Qe4+ {[%clk 0:00:38.2]}
63... Kd2 {[%clk 0:00:10.6]} 64. Qf3 {[%clk 0:00:38.5]} 64... Kc2 {[%clk
0:00:10.4]} 65. Kc4 {[%clk 0:00:38.1]} 65... Kd2 {[%clk 0:00:10.6]} 66. Kd4
{[%clk 0:00:37.6]} 66... Kc2 {[%clk 0:00:10.5]} 67. Qd3+ {[%clk 0:00:37.6]}
67... Kb2 {[%clk 0:00:10.4]} 68. Qc3+ {[%clk 0:00:37.9]} 68... Ka2 {[%clk
0:00:09.8]} 69. Qb4 {[%clk 0:00:38.2]} 69... Ka1 {[%clk 0:00:09.5]} 70. Kc3
{[%clk 0:00:39.1]} 1-0

[Event "Early-Titled-Tuesday-Blitz-October-03-2023"]
[Site "Chess.com"]
[Date "2023.10.03"]
[Round "9"]
[White "JosefineHeinemann"]
[Black "arenal72"]
[Result "0-1"]
[WhiteElo "2511"]
[BlackElo "2393"]
[TimeControl "180+1"]
[EndTime "9:47:05 PDT"]
[Termination "arenal72 won by resignation"]

1. Nf3 {[%clk 0:02:37]} 1... d6 {[%clk 0:02:54.1]} 2. d4 {[%clk 0:02:36.1]} 2...
Nf6 {[%clk 0:02:52.3]} 3. c4 {[%clk 0:02:33.7]} 3... g6 {[%clk 0:02:50.5]} 4. g3
{[%clk 0:02:32.8]} 4... Bg7 {[%clk 0:02:50.1]} 5. Bg2 {[%clk 0:02:32.1]} 5...
O-O {[%clk 0:02:44.5]} 6. O-O {[%clk 0:02:21.8]} 6... Bf5 {[%clk 0:02:42.8]} 7.
b3 {[%clk 0:02:19.3]} 7... c6 {[%clk 0:02:37.4]} 8. Bb2 {[%clk 0:02:19]} 8...
Qc7 {[%clk 0:02:33.8]} 9. Nc3 {[%clk 0:02:18.6]} 9... Ne4 {[%clk 0:02:23.1]} 10.
Nh4 {[%clk 0:01:52.2]} 10... Nxc3 {[%clk 0:02:21.5]} 11. Bxc3 {[%clk 0:01:53.1]}
11... Bd7 {[%clk 0:02:21.3]} 12. Nf3 {[%clk 0:01:51.3]} 12... a5 {[%clk
0:02:17.2]} 13. Qd2 {[%clk 0:01:48.6]} 13... a4 {[%clk 0:02:09.9]} 14. e4 {[%clk
0:01:47.8]} 14... e5 {[%clk 0:02:01.6]} 15. dxe5 {[%clk 0:01:43.5]} 15... dxe5
{[%clk 0:02:02.5]} 16. Rfd1 {[%clk 0:01:43.7]} 16... f6 {[%clk 0:01:54.8]} 17.
Qd6 {[%clk 0:01:42.4]} 17... Qxd6 {[%clk 0:01:53.9]} 18. Rxd6 {[%clk 0:01:43.3]}
18... Rf7 {[%clk 0:01:51]} 19. Rad1 {[%clk 0:01:41.9]} 19... Bf8 {[%clk
0:01:51]} 20. R6d2 {[%clk 0:01:34.5]} 20... axb3 {[%clk 0:01:51]} 21. axb3
{[%clk 0:01:34.4]} 21... Ra3 {[%clk 0:01:42.2]} 22. Rb2 {[%clk 0:01:31.6]} 22...
Bc5 {[%clk 0:01:27.7]} 23. Ne1 {[%clk 0:01:26.6]} 23... Na6 {[%clk 0:00:58.9]}
24. Nd3 {[%clk 0:01:18]} 24... Bd4 {[%clk 0:00:49.7]} 25. Bxd4 {[%clk
0:01:16.9]} 25... exd4 {[%clk 0:00:50.6]} 26. f4 {[%clk 0:01:04.8]} 26... b6
{[%clk 0:00:33.8]} 27. Re1 {[%clk 0:01:02.7]} 27... Nc5 {[%clk 0:00:24.3]} 28.
Nxc5 {[%clk 0:01:00.8]} 28... bxc5 {[%clk 0:00:24.4]} 29. e5 {[%clk 0:01:01.7]}
29... Re7 {[%clk 0:00:23.9]} 30. Kf2 {[%clk 0:00:56.6]} 30... fxe5 {[%clk
0:00:20.3]} 31. Rxe5 {[%clk 0:00:56.3]} 31... Rxe5 {[%clk 0:00:20.4]} 32. fxe5
{[%clk 0:00:57.2]} 32... Kf7 {[%clk 0:00:20.9]} 33. b4 {[%clk 0:00:51.7]} 33...
cxb4 {[%clk 0:00:18.3]} 34. Rxb4 {[%clk 0:00:52.6]} 34... Rc3 {[%clk 0:00:17.5]}
35. Rb7 {[%clk 0:00:52.4]} 35... Ke8 {[%clk 0:00:16.3]} 36. e6 {[%clk
0:00:51.8]} 36... Bxe6 {[%clk 0:00:16]} 37. Bxc6+ {[%clk 0:00:51.7]} 37... Kf8
{[%clk 0:00:16.1]} 38. Bd5 {[%clk 0:00:47.4]} 38... Bg4 {[%clk 0:00:09.5]} 39.
h4 {[%clk 0:00:34.5]} 39... Rc2+ {[%clk 0:00:08.6]} 40. Ke1 {[%clk 0:00:31.4]}
40... d3 {[%clk 0:00:05.9]} 41. Rf7+ {[%clk 0:00:29.6]} 41... Ke8 {[%clk
0:00:05.8]} 42. Rf2 {[%clk 0:00:28.1]} 42... Rxf2 {[%clk 0:00:05.7]} 43. Kxf2
{[%clk 0:00:25.8]} 43... d2 {[%clk 0:00:06.2]} 44. Bc6+ {[%clk 0:00:22.7]} 44...
Ke7 {[%clk 0:00:04.5]} 45. Ba4 {[%clk 0:00:23.2]} 45... Kd6 {[%clk 0:00:03.1]}
46. Ke3 {[%clk 0:00:21.8]} 46... d1=Q {[%clk 0:00:03.6]} 47. Bxd1 {[%clk
0:00:22.4]} 47... Bxd1 {[%clk 0:00:04.2]} 48. Kd4 {[%clk 0:00:23.1]} 48... Bg4
{[%clk 0:00:03.8]} 49. c5+ {[%clk 0:00:18]} 49... Kc6 {[%clk 0:00:04]} 50. Kc4
{[%clk 0:00:18.9]} 50... h5 {[%clk 0:00:03.6]} 51. Kd4 {[%clk 0:00:19.4]} 51...
Bf5 {[%clk 0:00:04]} 52. Kc4 {[%clk 0:00:19.3]} 52... Be6+ {[%clk 0:00:03.9]}
53. Kd4 {[%clk 0:00:19.7]} 53... Bb3 {[%clk 0:00:04.2]} 54. Ke5 {[%clk 0:00:18]}
54... Kxc5 {[%clk 0:00:04.2]} 55. Kf6 {[%clk 0:00:17.3]} 55... Bc2 {[%clk
0:00:04.5]} 56. Kg5 {[%clk 0:00:17.7]} 56... Bf5 {[%clk 0:00:04.7]} 57. g4
{[%clk 0:00:17.2]} 57... Bxg4 {[%clk 0:00:03.6]} 58. Kxg6 {[%clk 0:00:17.4]}
58... Kd4 {[%clk 0:00:04.5]} 59. Kg5 {[%clk 0:00:17.8]} 59... Ke4 {[%clk
0:00:05.2]} 60. Kf6 {[%clk 0:00:17.8]} 60... Kf4 {[%clk 0:00:05.8]} 61. Kg6
{[%clk 0:00:17.3]} 61... Kg3 {[%clk 0:00:06.5]} 0-1

[Event "Early-Titled-Tuesday-Blitz-October-03-2023"]
[Site "Chess.com"]
[Date "2023.10.03"]
[Round "9"]
[White "FairChess_on_YouTube"]
[Black "Zavgorodniy_Sergiy"]
[Result "1/2-1/2"]
[WhiteElo "3042"]
[BlackElo "2638"]
[TimeControl "180+1"]
[EndTime "9:47:07 PDT"]
[Termination "Game drawn by repetition"]

1. d4 {[%clk 0:03:00.9]} 1... Nf6 {[%clk 0:02:59]} 2. c4 {[%clk 0:03:00.8]} 2...
e6 {[%clk 0:02:58.8]} 3. Nf3 {[%clk 0:03:00.3]} 3... Bb4+ {[%clk 0:02:59.1]} 4.
Bd2 {[%clk 0:02:58.8]} 4... Qe7 {[%clk 0:02:59.3]} 5. g3 {[%clk 0:02:57.4]} 5...
Nc6 {[%clk 0:02:56.7]} 6. Bg2 {[%clk 0:02:57.4]} 6... Bxd2+ {[%clk 0:02:56.4]}
7. Nbxd2 {[%clk 0:02:53.9]} 7... d6 {[%clk 0:02:56.6]} 8. Nf1 {[%clk 0:02:53]}
8... e5 {[%clk 0:02:55.1]} 9. Ne3 {[%clk 0:02:53]} 9... Bg4 {[%clk 0:02:55.4]}
10. d5 {[%clk 0:02:29.1]} 10... Bxf3 {[%clk 0:02:32.7]} 11. exf3 {[%clk
0:02:29.4]} 11... Nd4 {[%clk 0:02:31.6]} 12. O-O {[%clk 0:02:29.4]} 12... O-O
{[%clk 0:02:30.5]} 13. Re1 {[%clk 0:02:29.6]} 13... c5 {[%clk 0:02:26.1]} 14.
dxc6 {[%clk 0:02:28.9]} 14... bxc6 {[%clk 0:02:26.3]} 15. f4 {[%clk 0:02:27.1]}
15... Rab8 {[%clk 0:02:17.4]} 16. b3 {[%clk 0:02:20.2]} 16... Qc7 {[%clk
0:02:14.1]} 17. Qd3 {[%clk 0:02:14.3]} 17... Rfe8 {[%clk 0:02:10.3]} 18. Rad1
{[%clk 0:02:04.4]} 18... c5 {[%clk 0:01:49.5]} 19. fxe5 {[%clk 0:02:03.4]} 19...
dxe5 {[%clk 0:01:39.4]} 20. Nd5 {[%clk 0:02:03.4]} 20... Nxd5 {[%clk 0:01:39.3]}
21. Bxd5 {[%clk 0:02:04.3]} 21... g6 {[%clk 0:01:26.6]} 22. Kg2 {[%clk
0:02:01.2]} 22... Kg7 {[%clk 0:01:26.9]} 23. Re3 {[%clk 0:01:59.5]} 23... f5
{[%clk 0:01:14.2]} 24. Qc3 {[%clk 0:01:59.6]} 24... a5 {[%clk 0:01:10.3]} 25. h4
{[%clk 0:01:55.8]} 25... h5 {[%clk 0:01:08.4]} 26. Qa1 {[%clk 0:01:50.6]} 26...
Re7 {[%clk 0:01:08.6]} 27. Qc3 {[%clk 0:01:44]} 27... Rbe8 {[%clk 0:01:08.6]}
28. f3 {[%clk 0:01:41]} 28... Kh7 {[%clk 0:01:08.6]} 29. Rde1 {[%clk 0:01:40.4]}
29... e4 {[%clk 0:00:59.1]} 30. f4 {[%clk 0:01:27]} 30... Qb6 {[%clk 0:00:50.1]}
31. Rb1 {[%clk 0:01:23]} 31... Rb8 {[%clk 0:00:48.6]} 32. a3 {[%clk 0:01:12.6]}
32... Rc7 {[%clk 0:00:36.1]} 33. Rb2 {[%clk 0:01:08.3]} 33... Re7 {[%clk
0:00:34.2]} 34. Re1 {[%clk 0:01:08]} 34... Rc7 {[%clk 0:00:33.2]} 35. Reb1
{[%clk 0:01:08.1]} 35... Qa7 {[%clk 0:00:28.1]} 36. Kh3 {[%clk 0:01:04.6]} 36...
Re7 {[%clk 0:00:28.1]} 37. b4 {[%clk 0:00:41.8]} 37... axb4 {[%clk 0:00:27.4]}
38. axb4 {[%clk 0:00:42.7]} 38... cxb4 {[%clk 0:00:26.9]} 39. Rxb4 {[%clk
0:00:43.6]} 39... Rxb4 {[%clk 0:00:25.2]} 40. Qxb4 {[%clk 0:00:44.5]} 40... e3
{[%clk 0:00:22.4]} 41. Qd6 {[%clk 0:00:38.3]} 41... e2 {[%clk 0:00:15.3]} 42.
Qd8 {[%clk 0:00:38.1]} 42... Rg7 {[%clk 0:00:11.8]} 43. Qc8 {[%clk 0:00:14.4]}
43... Qe7 {[%clk 0:00:10.9]} 44. Rb8 {[%clk 0:00:13.4]} 44... Kh6 {[%clk
0:00:07.8]} 45. Qh8+ {[%clk 0:00:09]} 45... Rh7 {[%clk 0:00:08]} 46. Qxd4 {[%clk
0:00:08.5]} 46... e1=Q {[%clk 0:00:08.2]} 47. Rb7 {[%clk 0:00:08]} 47... Qxb7
{[%clk 0:00:04.3]} 48. Bxb7 {[%clk 0:00:08.9]} 48... Rxb7 {[%clk 0:00:02.2]} 49.
Qh8+ {[%clk 0:00:09.3]} 49... Rh7 {[%clk 0:00:02.8]} 50. Qf8+ {[%clk 0:00:09.9]}
50... Rg7 {[%clk 0:00:03.4]} 51. Qh8+ {[%clk 0:00:10.6]} 51... Rh7 {[%clk
0:00:03.9]} 52. Qf8+ {[%clk 0:00:11.3]} 52... Rg7 {[%clk 0:00:04.6]} 53. Qh8+
{[%clk 0:00:11.6]} 53... Rh7 {[%clk 0:00:04.8]} 1/2-1/2